fUSD/lending_fUSD_20251207
["ID","MTS","AMOUNT","RATE_DAILY","PERIOD"]
[397137126,1765151555126,-500.0,0.0001563,2]
[397137127,1765151555136,-1663.54,0.0001563,2]
[397137128,1765151555145,-760.99,0.0001563,2]
[397137129,1765151555155,-744.64,0.0001563,2]
[397137130,1765151555164,-500.0,0.0001563,2]
[397137131,1765151555174,-764.55,0.0001563,2]
[397137132,1765151555184,-578.6,0.0001563,2]
[397137133,1765151555194,-686.55,0.0001563,2]
[397137134,1765151555204,-508.66,0.0001563,2]
[397137135,1765151555214,-1144.4,0.0001563,2]
[397137136,1765151555224,-500.0,0.0001563,2]
[397137137,1765151555234,-548.75,0.0001563,2]
[397137138,1765151555243,-779.59,0.0001563,2]
[397137139,1765151555253,-2343.28,0.0001563,2]
[397137140,1765151555263,-500.0,0.0001563,2]
[397137141,1765151555273,-1317.51,0.0001563,2]
[397137142,1765151555283,-509.14,0.0001563,2]
[397137143,1765151555293,-287.50448404,0.0001563,2]
[397137144,1765151555303,-698.02,0.0001563,2]
[397137145,1765151555312,-516.24,0.0001563,2]
[397137146,1765151555322,-636.75,0.0001563,2]
[397137147,1765151555332,-614.02,0.0001563,2]
[397137148,1765151555341,-500.0,0.0001563,2]
[397137149,1765151555354,-797.17,0.0001563,2]
[397137150,1765151555364,-500.0,0.0001563,2]
[397137151,1765151555374,-150.0,0.00015631,2]
[397137152,1765151555383,-150.0,0.00015631,2]
[397137153,1765151555394,-150.0,0.00015639,2]
[397137154,1765151555403,-150.0,0.00015641,2]
[397137155,1765151555412,-500.0,0.00015644,2]
[397137156,1765151555422,-150.0,0.00015644,2]
[397137157,1765151555434,-150.0,0.0001565,2]
[397137158,1765151555443,-3000.0,0.00015652,2]
[397137159,1765151555453,-688.49839244,0.00015652,2]
[397137160,1765151555462,-150.0,0.00015655,2]
[397137161,1765151555471,-150.0,0.0001566,2]
[397137162,1765151555480,-150.0,0.00015669,2]
[397137163,1765151555490,-150.0,0.00015673,2]
[397137164,1765151555499,-500.0,0.0001568,2]
[397137165,1765151555508,-150.0,0.0001568,2]
[397137166,1765151555519,-150.0,0.0001568,2]
[397137167,1765151555528,-150.0,0.0001568,2]
[397137168,1765151555537,-500.0,0.00015681,2]
[397137169,1765151555547,-500.0,0.00015682,2]
[397137170,1765151555556,-500.0,0.00015683,2]
[397137171,1765151555566,-500.0,0.00015684,2]
[397137172,1765151555576,-500.0,0.00015685,2]
[397137173,1765151555585,-500.0,0.00015686,2]
[397137174,1765151555594,-500.0,0.00015687,2]
[397137175,1765151555604,-500.0,0.00015688,2]
[397137176,1765151555613,-692.207317,0.00015689,2]
[397137177,1765151555623,-1252.0,0.0001569,2]
[397137178,1765151555633,-150.0,0.0001569,2]
[397137179,1765151555643,-150.0,0.00015694,2]
[397137180,1765151555653,-150.0,0.000157,2]
[397137181,1765151555662,-150.0,0.00015705,2]
[397137182,1765151555672,-150.0,0.00015706,2]
[397137183,1765151555682,-150.0,0.00015709,2]
[397137184,1765151555691,-150.0,0.00015718,2]
[397137185,1765151555700,-150.0,0.00015724,2]
[397137186,1765151555710,-500.0,0.00015725,2]
[397137187,1765151555719,-150.0,0.00015728,2]
[397137188,1765151555729,-150.0,0.00015729,2]
[397137189,1765151555738,-500.0,0.00015731,2]
[397137190,1765151555748,-1646.62,0.00015731,2]
[397137191,1765151555757,-534.13439104,0.00015731,2]
[397137192,1765151555767,-500.0,0.00015731,2]
[397137193,1765151555777,-572.71,0.00015731,2]
[397137194,1765151555786,-801.15,0.00015731,2]
[397137195,1765151555796,-500.0,0.00015731,2]
[397137196,1765151555806,-500.0,0.00015731,2]
[397137197,1765151555815,-541.52,0.00015731,2]
[397137198,1765151555824,-500.0,0.00015731,2]
[397137199,1765151555833,-500.0,0.00015731,2]
[397137200,1765151555843,-500.0,0.00015731,2]
[397137201,1765151555853,-500.0,0.00015731,2]
[397137202,1765151555861,-535.59,0.00015731,2]
[397137203,1765151555871,-495.49153424,0.00015731,2]
[397137204,1765151555881,-504.22,0.00015731,2]
[397137205,1765151555891,-559.43,0.00015731,2]
[397137206,1765151555900,-500.0,0.00015731,2]
[397137207,1765151555910,-500.0,0.00015731,2]
[397137208,1765151555919,-500.0,0.00015731,2]
[397137209,1765151555929,-500.0,0.00015731,2]
[397137210,1765151555938,-367.82,0.00015731,2]
[397137211,1765151555947,-500.0,0.00015731,2]
[397137212,1765151555956,-468.74,0.00015731,2]
[397137213,1765151555965,-513.08,0.00015731,2]
[397137214,1765151555975,-773.7,0.00015731,2]
[397137215,1765151555984,-553.76,0.00015731,2]
[397137216,1765151555993,-1258.37,0.00015731,2]
[397137217,1765151556003,-500.0,0.00015731,2]
[397137218,1765151556012,-500.0,0.00015731,2]
[397137219,1765151556021,-500.0,0.00015732,2]
[397137220,1765151556030,-500.0,0.00015732,2]
[397137221,1765151556039,-677.87,0.00015732,2]
[397137222,1765151556048,-752.02,0.00015732,2]
[397137223,1765151556057,-753.28,0.00015732,2]
[397137224,1765151556066,-150.0,0.00015733,2]
[397137225,1765151556075,-150.0,0.00015733,2]
[397137226,1765151556085,-158.49077723,0.00015738,2]
[397137227,1765151556094,-150.0,0.00015739,2]
[397137228,1765151556104,-1000.0,0.0001574,2]
[397137229,1765151556113,-150.0,0.00015742,2]
[397137230,1765151556123,-150.0,0.0001575,2]
[397137231,1765151556132,-150.0,0.00015754,2]
[397137232,1765151556141,-150.0,0.00015754,2]
[397137233,1765151556151,-150.0,0.00015762,2]
[397137234,1765151556159,-150.0,0.00015771,2]
[397137235,1765151556169,-168.38675848,0.00015776,13]
[397137236,1765151556178,-150.0,0.00015778,2]
[397137237,1765151556187,-150.0,0.00015779,2]
[397137238,1765151556198,-437444.4196819,0.00015789,2]
[397137239,1765151556207,-150.0,0.00015794,2]
[397137240,1765151556217,-150.0,0.00015796,2]
[397137241,1765151556227,-150.0,0.000158,2]
[397137242,1765151556236,-150.0,0.00015803,2]
[397137243,1765151556246,-150.0,0.00015804,2]
[397137244,1765151556256,-150.0,0.00015812,2]
[397137245,1765151556266,-150.0,0.00015822,2]
[397137246,1765151556275,-150.0,0.00015828,2]
[397137247,1765151556284,-150.0,0.0001583,2]
[397137248,1765151556294,-150.0,0.00015834,2]
[397137249,1765151556304,-150.0,0.00015837,2]
[397137250,1765151556313,-150.0,0.00015845,2]
[397137251,1765151556323,-150.0,0.0001585,2]
[397137252,1765151556333,-150.0,0.00015852,2]
[397137253,1765151556342,-150.0,0.00015855,2]
[397137254,1765151556356,-290.34597302,0.00015862,2]
[397137255,1765151556366,-150.0,0.00015864,2]
[397137256,1765151556375,-150.0,0.00015869,2]
[397137257,1765151556385,-150.0,0.00015877,2]
[397137258,1765151556396,-150.0,0.00015877,2]
[397137259,1765151556405,-150.0,0.0001589,2]
[397137260,1765151556416,-1995.74,0.0001589,2]
[397137261,1765151556427,-627.93979266,0.00015895,2]
[397137262,1765151556437,-150.0,0.00015897,2]
[397137263,1765151556447,-150.0,0.00015898,2]
[397137264,1765151556456,-150.0,0.000159,2]
[397137265,1765151556466,-1108.5011939,0.000159,2]
[397137266,1765151556476,-1108.50119386,0.000159,2]
[397137267,1765151556486,-1108.50119386,0.000159,2]
[397137268,1765151556496,-150.0,0.00015902,2]
[397137269,1765151556505,-150.0,0.00015902,2]
[397137270,1765151556515,-500.0,0.00015904,2]
[397137271,1765151556524,-500.0,0.00015904,2]
[397137272,1765151556534,-500.0,0.00015904,2]
[397137273,1765151556544,-500.0,0.00015904,2]
[397137274,1765151556555,-1010.92,0.00015904,2]
[397137275,1765151556565,-1142.69,0.00015904,2]
[397137276,1765151556574,-516.34,0.00015904,2]
[397137277,1765151556583,-730.95,0.00015904,2]
[397137278,1765151556593,-931.53,0.00015904,2]
[397137279,1765151556603,-1067.55,0.00015904,2]
[397137280,1765151556612,-500.0,0.00015904,2]
[397137281,1765151556622,-500.0,0.00015904,2]
[397137282,1765151556632,-964.76,0.00015904,2]
[397137283,1765151556641,-500.0,0.00015904,2]
[397137284,1765151556651,-785.61,0.00015904,2]
[397137285,1765151556661,-500.0,0.00015904,2]
[397137286,1765151556670,-500.0,0.00015904,2]
[397137287,1765151556680,-517.2,0.00015904,2]
[397137288,1765151556690,-705.54,0.00015904,2]
[397137289,1765151556701,-867.45,0.00015904,2]
[397137290,1765151556710,-847.35,0.00015904,2]
[397137291,1765151556720,-500.0,0.00015904,2]
[397137292,1765151556730,-2961.73,0.00015904,2]
[397137293,1765151556739,-500.0,0.00015904,2]
[397137294,1765151556749,-500.0,0.00015904,2]
[397137295,1765151556758,-604.71,0.00015904,2]
[397137296,1765151556768,-2078.38,0.00015904,2]
[397137297,1765151556777,-551.44,0.00015904,2]
[397137298,1765151556787,-500.0,0.00015904,2]
[397137299,1765151556796,-529.75,0.00015904,2]
[397137300,1765151556806,-500.0,0.00015904,2]
[397137301,1765151556815,-500.0,0.00015904,2]
[397137302,1765151556825,-1666.06,0.00015904,2]
[397137303,1765151556834,-1209.14,0.00015904,2]
[397137304,1765151556844,-352.16,0.00015904,2]
[397137305,1765151556853,-298.09689202,0.00015904,2]
[397137306,1765151556863,-651.69,0.00015904,2]
[397137307,1765151556873,-201.58,0.00015904,2]
[397137308,1765151556882,-500.0,0.00015904,2]
[397137309,1765151556892,-532.81,0.00015904,2]
[397137310,1765151556902,-580.81,0.00015904,2]
[397137311,1765151556911,-500.0,0.00015904,2]
[397137312,1765151556921,-500.0,0.00015904,2]
[397137313,1765151556931,-1663.54,0.00015904,2]
[397137314,1765151556940,-760.99,0.00015904,2]
[397137315,1765151556950,-744.64,0.00015904,2]
[397137316,1765151556960,-500.0,0.00015904,2]
[397137317,1765151556970,-764.55,0.00015904,2]
[397137318,1765151556980,-578.6,0.00015904,2]
[397137319,1765151556990,-686.55,0.00015904,2]
[397137320,1765151557000,-508.66,0.00015904,2]
[397137321,1765151557010,-1144.4,0.00015904,2]
[397137322,1765151557020,-500.0,0.00015904,2]
[397137323,1765151557030,-548.75,0.00015904,2]
[397137324,1765151557040,-779.59,0.00015904,2]
[397137325,1765151557051,-2343.28,0.00015904,2]
[397137326,1765151557061,-500.0,0.00015904,2]
[397137327,1765151557072,-1317.51,0.00015904,2]
[397137328,1765151557081,-509.14,0.00015904,2]
[397137329,1765151557091,-698.02,0.00015904,2]
[397137330,1765151557101,-516.24,0.00015904,2]
[397137331,1765151557111,-636.75,0.00015904,2]
[397137332,1765151557121,-614.02,0.00015904,2]
[397137333,1765151557131,-500.0,0.00015904,2]
[397137334,1765151557141,-797.17,0.00015904,2]
[397137335,1765151557151,-500.0,0.00015904,2]
[397137336,1765151557160,-150.0,0.00015906,2]
[397137337,1765151557170,-150.0,0.00015911,2]
[397137338,1765151557179,-4609.0,0.00015918,2]
[397137339,1765151557188,-625.26050914,0.0001592,2]
[397137340,1765151557199,-2500.0,0.0001592,2]
[397137341,1765151557209,-500.0,0.0001592,2]
[397137342,1765151557221,-150.0,0.00015926,2]
[397137343,1765151557231,-150.0,0.00015932,2]
[397137344,1765151557241,-150.0,0.00015935,2]
[397137345,1765151557252,-150.0,0.00015945,2]
[397137346,1765151557261,-5388.3053866,0.00015945,2]
[397137347,1765151557272,-150.0,0.00015948,2]
[397137348,1765151557282,-150.0,0.0001595,2]
[397137349,1765151557292,-150.0,0.00015951,2]
[397137350,1765151557302,-1020.0,0.00015951,2]
[397137351,1765151557312,-150.0,0.00015966,2]
[397137352,1765151557322,-1000.0,0.00015967,2]
[397137353,1765151557332,-150.0,0.00015967,2]
[397137354,1765151557341,-150.0,0.00015975,2]
[397137355,1765151557354,-388.29368732,0.00015992,2]
[397137356,1765151557364,-151.0,0.00015997,2]
[397137357,1765151557374,-151.0,0.00015997,2]
[397137358,1765151557384,-155.96375505,0.00016,2]
[397137359,1765151557394,-182.99918788,0.00016,2]
[397137360,1765151557407,-150.0,0.00016,2]
[397137361,1765151557418,-150.0,0.00016,2]
[397137362,1765151557429,-215.50170445,0.00016,2]
[397137363,1765151557440,-151.24814037,0.00016,2]
[397137364,1765151557450,-150.0,0.00016,2]
[397137365,1765151557460,-150.0,0.00016,2]
[397137366,1765151557469,-262.48233981,0.00016,2]
[397137367,1765151557479,-150.40611096,0.00016,2]
[397137368,1765151557491,-150.0,0.00016,2]
[397137369,1765151557501,-265.8791889,0.00016,2]
[397137370,1765151557512,-188.84863027,0.00016,2]
[397137371,1765151557522,-150.0,0.00016,2]
[397137372,1765151557533,-265.11555896,0.00016,2]
[397137373,1765151557546,-191.42006679,0.00016,2]
[397137374,1765151557557,-181.2061388,0.00016,2]
[397137375,1765151557568,-400.9123834,0.00016,3]
[397137376,1765151557578,-22937.77905279,0.00016,2]
[397137377,1765151557587,-85571.06811957,0.00016,2]
[397137378,1765151557596,-1841464.24612135,0.00016,4]
[397137379,1765151557904,-368.13557975,0.00011347,2]
[397137380,1765151557914,-500.0,0.00011795,2]
[397137381,1765151557924,-500.0,0.00011795,2]
[397137382,1765151557934,-335.54642024,0.00012069,2]
[397137383,1765151557947,-164.45357976,0.00012069,2]
[397137384,1765151557957,-1553.17824804,0.00016,4]
[397137385,1765151557968,-1917.05518308,0.00016,4]
[397137386,1765151558451,-1.7e-07,0.00016,4]
[397137387,1765151559528,-500.0,0.00010958,2]
[397137388,1765151559539,-372.68780708,0.00010973,2]
[397137389,1765151559551,-127.31219292,0.00010973,2]
[397137390,1765151559560,-500.0,0.00010973,2]
[397137391,1765151559571,-100.14453291,0.00011073,2]
[397137392,1765151559641,-500.0,0.00010973,2]
[397137393,1765151559651,-500.0,0.00010973,2]
[397137394,1765151559660,-399.85546709,0.00011073,2]
[397137395,1765151559670,-500.0,0.00011073,2]
[397137396,1765151559679,-500.0,0.00011073,2]
[397137397,1765151559688,-171.82309291,0.00011073,2]
[397137398,1765151559750,-500.0,0.00010973,2]
[397137399,1765151559760,-303.00093127,0.00011073,2]
[397137400,1765151559771,-25.17597582,0.00011073,2]
[397137401,1765151559780,-303.09099239,0.00011073,2]
[397137402,1765151559791,-196.90900761,0.00011073,2]
[397137403,1765151559801,-1011.09099239,0.00011245,2]
[397137404,1765151559812,-229.90900761,0.00011245,2]
[397137405,1765151559822,-232.027213,0.00011247,2]
[397137406,1765151559831,-26.81431039,0.00011247,2]
[397137407,1765151559842,-473.18568961,0.00011247,2]
[397137408,1765151559851,-500.0,0.00011247,2]
[397137409,1765151559861,-1899.0,0.00011268,2]
[397137410,1765151559870,-500.0,0.00011347,2]
[397137411,1765151559880,-500.0,0.00011347,2]
[397137412,1765151559889,-500.0,0.00011347,2]
[397137413,1765151559899,-500.0,0.00011347,2]
[397137414,1765151559908,-500.0,0.00011347,2]
[397137415,1765151559917,-500.0,0.00011521,2]
[397137416,1765151559926,-500.0,0.00011621,2]
[397137417,1765151559936,-500.0,0.00011621,2]
[397137418,1765151559945,-500.0,0.00011621,2]
[397137419,1765151559955,-500.0,0.00011621,2]
[397137420,1765151559967,-500.0,0.00011621,2]
[397137421,1765151559977,-515.53454579,0.00011795,2]
[397137422,1765151559986,-500.0,0.00011895,2]
[397137423,1765151559995,-260.04064675,0.00011895,2]
[397137424,1765151560005,-500.0,0.00011895,2]
[397137425,1765151560015,-500.0,0.00011895,2]
[397137426,1765151560024,-500.0,0.00011895,2]
[397137427,1765151560034,-500.0,0.00012069,2]
[397137428,1765151560044,-507.39,0.00012169,2]
[397137429,1765151560053,-500.0,0.00012169,2]
[397137430,1765151560063,-500.0,0.00012169,2]
[397137431,1765151560073,-500.30387297,0.00012343,2]
[397137432,1765151560082,-500.0,0.00012343,2]
[397137433,1765151560093,-500.0,0.00012443,2]
[397137434,1765151560103,-500.0,0.00012443,2]
[397137435,1765151560112,-500.0,0.00012617,2]
[397137436,1765151560123,-500.0,0.00012717,2]
[397137437,1765151560134,-500.0,0.00012717,2]
[397137438,1765151560143,-500.0,0.00012891,2]
[397137439,1765151560153,-500.0,0.00012991,2]
[397137440,1765151560163,-500.0,0.00013165,2]
[397137441,1765151560172,-500.0,0.00013439,2]
[397137442,1765151560182,-515.57,0.00013713,2]
[397137443,1765151560191,-197.92781344,0.00013713,2]
[397137444,1765151560201,-146.9663052,0.00013987,2]
[397137445,1765151560278,-500.0,0.00011247,2]
[397137446,1765151560288,-500.0,0.00011247,2]
[397137447,1765151560297,-500.0,0.00012991,2]
[397137448,1765151560308,-392.29354675,0.00013265,2]
[397137449,1765151560317,-368.6036948,0.00013987,2]
[397137450,1765151560327,-515.57,0.00014261,2]
[397137451,1765151560337,-515.57,0.00014535,2]
[397137452,1765151560346,-515.57,0.00014809,2]
[397137453,1765151560358,-515.57,0.00015083,2]
[397137454,1765151560367,-515.57,0.00015356,2]
[397137455,1765151560377,-515.57,0.0001563,2]
[397137456,1765151560387,-1108.50119386,0.000159,2]
[397137457,1765151560397,-515.57,0.00015904,2]
[397137458,1765151560407,-2166.51042823,0.00016,4]
[397137459,1765151561175,-495.37650843,0.00010958,2]
[397137460,1765151561185,-405.48610757,0.00010958,2]
[397137461,1765151561258,-94.51389243,0.00010958,2]
[397137462,1765151561267,-500.0,0.00010973,2]
[397137463,1765151561276,-145.42610757,0.00010973,2]
[397137464,1765151561287,-354.57389243,0.00010973,2]
[397137465,1765151561297,-500.0,0.00010973,2]
[397137466,1765151561306,-500.0,0.00010973,2]
[397137467,1765151561315,-500.0,0.00011073,2]
[397137468,1765151561323,-500.0,0.00011073,2]
[397137469,1765151561333,-500.0,0.00011232,2]
[397137470,1765151561342,-500.0,0.00011247,2]
[397137471,1765151561352,-500.0,0.00011247,2]
[397137472,1765151561364,-500.0,0.00011247,2]
[397137473,1765151561373,-500.0,0.00011347,2]
[397137474,1765151561383,-500.0,0.00011347,2]
[397137475,1765151561392,-500.0,0.00011506,2]
[397137476,1765151561403,-500.0,0.00011521,2]
[397137477,1765151561412,-500.0,0.00011521,2]
[397137478,1765151561422,-500.0,0.00011521,2]
[397137479,1765151561432,-500.0,0.00011521,2]
[397137480,1765151561441,-500.0,0.00011521,2]
[397137481,1765151561451,-500.0,0.00011621,2]
[397137482,1765151561461,-500.0,0.00011621,2]
[397137483,1765151561472,-500.0,0.00011795,2]
[397137484,1765151561482,-500.0,0.00011795,2]
[397137485,1765151561491,-500.0,0.00011795,2]
[397137486,1765151561501,-500.0,0.00011895,2]
[397137487,1765151561510,-500.0,0.00011895,2]
[397137488,1765151561519,-556.92104072,0.00012069,2]
[397137489,1765151561530,-500.0,0.00012069,2]
[397137490,1765151561541,-500.0,0.00012069,2]
[397137491,1765151561552,-500.0,0.00012169,2]
[397137492,1765151561562,-500.0,0.00012169,2]
[397137493,1765151561651,-500.0,0.00012343,2]
[397137494,1765151561660,-500.0,0.00012343,2]
[397137495,1765151561670,-500.0,0.00012443,2]
[397137496,1765151561679,-500.0,0.00012617,2]
[397137497,1765151561688,-500.0,0.00012617,2]
[397137498,1765151561697,-500.0,0.00012891,2]
[397137499,1765151561706,-500.0,0.00013265,2]
[397137500,1765151561716,-151.0,0.00013699,2]
[397137501,1765151561725,-151.0,0.00013699,2]
[397137502,1765151561736,-151.0,0.00013699,2]
[397137503,1765151561747,-151.0,0.00013699,2]
[397137504,1765151561757,-151.0,0.00013699,2]
[397137505,1765151561768,-151.0,0.00013699,2]
[397137506,1765151561777,-151.0,0.00013699,2]
[397137507,1765151561787,-151.0,0.00013699,2]
[397137508,1765151561797,-151.0,0.00013699,2]
[397137509,1765151561807,-163155.44349648,0.00016,4]
[397137510,1765151565470,-246.58539144,0.00010958,2]
[397137511,1765151567120,171.17242875,0.00010873,2]
[397137512,1765151567177,500.0,0.00010873,2]
[397137513,1765151567250,310.93466906,0.00010873,2]
[397137515,1765151597751,9017.90290219,0.00010774,2]
[397137516,1765151597793,10000.01,0.00010774,2]
[397137517,1765151597834,10000.01,0.00010774,2]
[397137518,1765151597876,4410.81419781,0.00010774,2]
[397137519,1765151601813,-182.81705247,0.00010915,2]
[397137520,1765151607354,5589.19580219,0.00010774,2]
[397137521,1765151607405,10000.01,0.00010774,2]
[397137522,1765151607454,10000.01,0.00010774,2]
[397137523,1765151611353,-244.86781469,0.00010774,2]
[397137524,1765151644089,-150.0,0.00010773,2]
[397137526,1765151674173,-217.52322725,0.00010773,2]
[397137527,1765151674220,-302.49041128,0.00010773,2]
[397137528,1765151674267,-500.0,0.00010773,2]
[397137529,1765151674316,-500.0,0.00010773,2]
[397137530,1765151674363,-224.88572666,0.00010773,2]
[397137531,1765151675420,-6210.21126962,0.00010774,2]
[397137532,1765151675476,-10000.01,0.00010774,2]
[397137533,1765151675954,-10000.01,0.00010774,2]
[397137534,1765151676054,-10000.01,0.00010774,2]
[397137535,1765151676128,-10000.01,0.00010774,2]
[397137536,1765151676187,-10000.01,0.00010774,2]
[397137537,1765151676307,-251.96281864,0.00010774,2]
[397137538,1765151676340,-10000.01,0.00010774,2]
[397137539,1765151676735,-10000.01,0.00010774,2]
[397137540,1765151693479,-500.0,0.00010773,2]
[397137541,1765151693558,-173.85279925,0.00010773,2]
[397137542,1765151693687,-8652.3044015,0.00010774,2]
[397137543,1765151693752,-10000.01,0.00010774,2]
[397137544,1765151693911,-10000.01,0.00010774,2]
[397137545,1765151695204,-10000.01,0.00010774,2]
[397137547,1765151721869,-202.16244433,0.00010674,2]
[397137548,1765151721930,-78.24493266,0.00010674,2]
[397137549,1765151724063,-267.22706857,0.00010674,2]
[397137552,1765151882164,-280.64766664,0.00010674,2]
[397137553,1765151882214,-1200.0,0.00010772,2]
[397137554,1765151882265,-153.85632958,0.00010773,2]
[397137555,1765151882359,-500.0,0.00010773,2]
[397137556,1765151882458,-500.0,0.00010773,2]
[397137557,1765151882552,-500.0,0.00010773,2]
[397137558,1765151882648,-159.39412427,0.00010773,2]
[397137559,1765151882742,-500.0,0.00010773,2]
[397137560,1765151882788,-273.58245737,0.00010773,2]
[397137561,1765151882836,-500.0,0.00010773,2]
[397137562,1765151882885,-225.05128761,0.00010773,2]
[397137563,1765151882919,-280.64766664,0.00010773,2]
[397137564,1765151882935,-219.35233337,0.00010773,2]
[397137565,1765151882944,-500.0,0.00010773,2]
[397137566,1765151882954,-480.64766663,0.00010773,2]
[397137567,1765151882971,-19.35233337,0.00010773,2]
[397137568,1765151882980,-134.50399621,0.00010773,2]
[397137569,1765151882992,-336.08314924,0.00010773,2]
[397137570,1765151883002,-163.91685076,0.00010773,2]
[397137571,1765151883031,-336.08314924,0.00010773,2]
[397137572,1765151883046,-163.91685076,0.00010773,2]
[397137573,1765151883128,-209.72426486,0.00010773,2]
[397137574,1765151883138,-290.27573514,0.00010773,2]
[397137575,1765151883156,-159.39412427,0.00010773,2]
[397137576,1765151883199,-95.9648764,0.00010773,2]
[397137577,1765151883211,-300.0,0.00010773,2]
[397137578,1765151883221,-104.0351236,0.00010773,2]
[397137579,1765151883257,-273.58245737,0.00010773,2]
[397137580,1765151883273,-500.0,0.00010773,2]
[397137581,1765151883284,-225.05128761,0.00010773,2]
[397137582,1765151883315,-97.33113142,0.00010773,2]
[397137583,1765151883325,-150.0,0.00010773,2]
[397137585,1765151928179,-500.0,0.00010773,2]
[397137586,1765151928277,-500.0,0.00010773,2]
[397137587,1765151928376,-500.0,0.00010773,2]
[397137588,1765151928475,-500.0,0.00010773,2]
[397137589,1765151928580,-500.0,0.00010773,2]
[397137590,1765151928672,-200.0,0.00010773,2]
[397137591,1765151929811,-303.65561637,0.00010774,2]
[397137592,1765151931881,-279.12845292,0.00010774,2]
[397137593,1765151935131,-333.86092404,0.00010774,2]
[397137594,1765151939065,-166.68338286,0.00010774,2]
[397137596,1765151941515,500.0,0.00010773,2]
[397137597,1765151941623,500.0,0.00010773,2]
[397137598,1765151941741,500.0,0.00010773,2]
[397137599,1765151941921,500.0,0.00010773,2]
[397137600,1765151942027,500.0,0.00010773,2]
[397137601,1765151942201,500.0,0.00010773,2]
[397137602,1765151942355,500.0,0.00010773,2]
[397137604,1765151942478,500.0,0.00010773,2]
[397137605,1765151942674,500.0,0.00010773,2]
[397137606,1765151943015,-330.66694125,0.00010774,2]
[397137607,1765151945747,-169.76735559,0.00010774,2]
[397137608,1765151948355,-332.65596373,0.00010774,2]
[397137609,1765151950470,-164.20132375,0.00010774,2]
[397137610,1765151952575,100.01,0.00010773,2]
[397137611,1765151952674,399.99,0.00010773,2]
[397137612,1765151952825,500.0,0.00010773,2]
[397137613,1765151952964,500.0,0.00010773,2]
[397137614,1765151954379,-206.6010368,0.00010774,2]
[397137615,1765151957234,-155.67417411,0.00010774,2]
[397137616,1765151961272,-395.20861025,0.00010774,2]
[397137617,1765151963406,-252.42753899,0.00010774,2]
[397137618,1765151967842,-353.70595912,0.00010774,2]
[397137619,1765151969192,-500.0,0.00010774,2]
[397137620,1765151970671,-161.32044445,0.00010774,2]
[397137621,1765151972379,-254.69018408,0.00010774,2]
[397137622,1765151974558,-168.08225623,0.00010774,2]
[397137623,1765151976823,-152.32297576,0.00010774,2]
[397137624,1765151979144,-163.76340853,0.00010774,2]
[397137625,1765151981450,-301.19969658,0.00010774,2]
[397137626,1765151983672,-360.50344816,0.00010774,2]
[397137627,1765151985291,-158.60857784,0.00010774,2]
[397137630,1765151986921,-157.19596588,0.00010774,2]
[397137631,1765151989725,-166.90941815,0.00010774,2]
[397137632,1765151991404,-193.56011946,0.00010774,2]
[397137633,1765151993077,-399.62498302,0.00010774,2]
[397137634,1765151995324,-153.03448283,0.00010774,2]
[397137635,1765151998174,-484.07830233,0.00010774,2]